[Event "Torneio Nacional Honour 2017-18"]
[Site "Cascais"]
[Date "2018.08.11"]
[Round "1"]
[White "Santos, Isabel"]
[Black "Santos, Ruben Jose Melo"]
[Result "0-1"]
[ECO "A62"]
[WhiteElo "2005"]
[BlackElo "1718"]
[Annotator "NA"]
[PlyCount "102"]
[EventDate "2018.08.11"]
[EventType "tourn"]
[EventCountry "POR"]
[SourceTitle "playchess.com"]
[Source "ChessBase"]
[SourceQuality "1"]
[TimeControl "5400+30"]

1. d4 {[%emt 1:14:44]} Nf6 {[%emt 0:00:00]} 2. c4 {[%emt 0:00:01]} c5 {[%emt 0:00:28]} 3. d5 {[%emt 0:00:06]} e6 {[%emt 0:00:12]} 4. Nc3 {[%emt 0:00:05]} d6 {[%emt 0:00:07]} 5. g3 {[%emt 0:00:30]} exd5 {[%emt 0:00:10]} 6. cxd5 {[%emt 0:00:39]} g6 {[%emt 0:01:36]} 7. Bg2 {[%emt 0:00:17]} Bg7 {[%emt 0:00:04]} 8. Nf3 {[%emt 0:00:36]} O-O {[%emt 0:00:20]} 9. O-O {[%emt 0:00:25]} Re8 {[%emt 0:01:13]} 10. Ng5 {[%emt 0:04:02]} Na6 {[%emt 0:02:11]} 11. e4 {[%emt 0:02:09]} Nc7 {[%emt 0:00:16]} 12. Re1 {[%emt 0:02:08]} b5 {[%emt 0:00:27]} 13. e5 {[%emt 0:00:41]} Nh5 {[%emt 0:06:08]} 14. g4 {[%emt 0:03:46]} Bxg4 {[%emt 0:00:02]} 15. Qxg4 {[%emt 0:00:24]} Bxe5 {[%emt 0:00:02]} 16. Bd2 {[%emt 0:05:06]} b4 {[%emt 0:01:05]} 17. Nd1 {[%emt 0:01:21]} f5 {[%emt 0:04:08]} 18. Qh3 {[%emt 0:00:55]} Bxh2+ {[%emt 0:00:35]} 19. Qxh2 {[%emt 0:00:52]} Rxe1+ {[%emt 0:00:04]} 20. Bxe1 {[%emt 0:00:02]} Qxg5 {[%emt 0:00:02]} 21. Qxd6 {[%emt 0:00:22]} Nf4 {[%emt 0:00:59]} 22. Ne3 {[%emt 0:00:11]} Ncxd5 {[%emt 0:01:44]} 23. Qc6 {[%emt 0:01:28]} Rd8 {[%emt 0:05:18]} 24. Rd1 {[%emt 0:00:29]} Ne2+ {[%emt 0:02:20]} 25. Kf1 {[%emt 0:00:33]} Nxe3+ {[%emt 0:10:43]} 26. fxe3 {[%emt 0:00:09]} Rxd1 {[%emt 0:04:15]} 27. Kxe2 {[%emt 0:00:03]} Qd8 {[%emt 0:00:04]} 28. Qe6+ {[%emt 0:01:21]} Kf8 {[%emt 0:01:56]} 29. Qc4 {[%emt 0:00:01]} Qd6 {[%emt 0:01:45]} 30. Qc2 {[%emt 0:00:47]} Ra1 {[%emt 0:06:21]} 31. b3 {[%emt 0:00:35]} Qa6+ {[%emt 0:10:12]} 32. Kf3 {[%emt 0:00:03]} Qa5 {[%emt 0:06:26]} 33. Qd2 {[%emt 0:00:31]} Qb6 {[%emt 0:02:44]} 34. Bg3 {[%emt 0:00:36]} Ke7 {[%emt 0:05:45]} 35. Bh4+ {[%emt 0:00:44]} Ke6 {[%emt 0:00:59]} 36. Qb2 {[%emt 0:00:31]} Rg1 {[%emt 0:07:23]} 37. Qf6+ {[%emt 0:00:25]} Kd7 {[%emt 0:02:31]} 38. Qe7+ {[%emt 0:00:31]} Kc8 {[%emt 0:00:35]} 39. Qe8+ {[%emt 0:00:10]} Kb7 {[%emt 0:00:22]} 40. Kf2+ {[%emt 0:00:51]} Rxg2+ {[%emt 0:00:01]} 41. Kxg2 {[%emt 0:00:02]} Qc6+ {[%emt 0:00:01]} 42. Qxc6+ {[%emt 0:00:41]} Kxc6 {[%emt 0:00:02]} 43. Kf3 {[%emt 0:00:06]} Kd5 {[%emt 0:00:58]} 44. Be7 {[%emt 0:00:21]} a5 {[%emt 0:04:50]} 45. Kf4 {[%emt 0:01:29]} c4 {[%emt 0:00:41]} 46. Bf6 {[%emt 0:00:07]} c3 {[%emt 0:00:38]} 47. Bd4 {[%emt 0:00:51]} h6 {[%emt 0:00:51]} 48. Bg7 {[%emt 0:00:18]} Ke6 {[%emt 0:00:40]} 49. Kf3 {[%emt 0:00:45]} g5 {[%emt 0:00:30]} 50. e4 {[%emt 0:00:37]} h5 {[%emt 0:01:00]} 51. Bh6 {[%emt 0:00:27]} fxe4+ {[%emt 0:01:00]} 0-1

[Event "Torneio Nacional Honour 2017-18"]
[Site "Cascais"]
[Date "2018.08.11"]
[Round "1"]
[White "Godinho Marques, Pedro"]
[Black "Goncalves, Carlos Manuel M"]
[Result "1-0"]
[ECO "A45"]
[WhiteElo "1862"]
[BlackElo "1645"]
[Annotator "NA"]
[PlyCount "111"]
[EventDate "2018.08.11"]
[EventType "tourn"]
[EventCountry "POR"]
[SourceTitle "playchess.com"]
[Source "ChessBase"]
[SourceQuality "1"]
[TimeControl "5400+30"]

1. d4 {[%emt 0:00:00]} Nf6 {[%emt 0:02:50]} 2. Bf4 {[%emt 0:00:47]} e6 {[%emt 0:00:52]} 3. Nf3 {[%emt 0:00:39]} Be7 {[%emt 0:01:44]} 4. h3 {[%emt 0:06:09]} c5 {[%emt 0:01:40]} 5. e3 {[%emt 0:03:27]} Nc6 {[%emt 0:01:27]} 6. c3 {[%emt 0:03:20]} b6 {[%emt 0:03:31]} 7. Nbd2 {[%emt 0:05:06]} Nd5 {[%emt 0:04:32]} 8. Bg3 {[%emt 0:04:28]} cxd4 {[%emt 0:02:38]} 9. cxd4 {[%emt 0:03:39]} Bb4 {[%emt 0:01:44]} 10. Bd3 {[%emt 0:03:26]} Qe7 {[%emt 0:00:38]} 11. O-O {[%emt 0:03:24]} Bxd2 {[%emt 0:00:19]} 12. Qxd2 {[%emt 0:01:58]} Bb7 {[%emt 0:03:29]} 13. Rac1 {[%emt 0:03:22]} O-O {[%emt 0:01:53]} 14. Bh4 {[%emt 0:08:04]} f6 {[%emt 0:07:00]} 15. Rfe1 {[%emt 0:04:10]} Rac8 {[%emt 0:06:54]} 16. e4 {[%emt 0:10:35]} Nc7 {[%emt 0:04:00]} 17. d5 {[%emt 0:04:21]} Nb4 {[%emt 0:04:19]} 18. Bc4 {[%emt 0:01:48]} Ne8 {[%emt 0:03:37]} 19. Nd4 {[%emt 0:06:28]} Rxc4 {[%emt 0:01:45]} 20. Rxc4 {[%emt 0:00:29]} Na6 {[%emt 0:00:52]} 21. Nb5 {[%emt 0:02:37]} d6 {[%emt 0:01:42]} 22. Nxa7 {[%emt 0:03:32]} Nc5 {[%emt 0:00:17]} 23. Nc6 {[%emt 0:01:03]} Qd7 {[%emt 0:01:02]} 24. Nb4 {[%emt 0:03:59]} e5 {[%emt 0:01:16]} 25. Nd3 {[%emt 0:01:08]} Nxd3 {[%emt 0:01:35]} 26. Qxd3 {[%emt 0:00:44]} Ba6 {[%emt 0:00:33]} 27. Qc2 {[%emt 0:00:39]} Bxc4 {[%emt 0:00:39]} 28. Qxc4 {[%emt 0:00:06]} h5 {[%emt 0:00:49]} 29. f3 {[%emt 0:00:16]} Nc7 {[%emt 0:00:59]} 30. Rc1 {[%emt 0:00:37]} Rc8 {[%emt 0:00:31]} 31. Bf2 {[%emt 0:00:58]} b5 {[%emt 0:01:26]} 32. Qc6 {[%emt 0:02:27]} Qxc6 {[%emt 0:00:38]} 33. Rxc6 {[%emt 0:00:13]} Ra8 {[%emt 0:01:34]} 34. Rxc7 {[%emt 0:01:01]} Rxa2 {[%emt 0:00:11]} 35. Rc2 {[%emt 0:00:56]} Kf8 {[%emt 0:00:35]} 36. Kf1 {[%emt 0:00:32]} Ke8 {[%emt 0:00:05]} 37. Ke2 {[%emt 0:00:13]} Kd7 {[%emt 0:00:26]} 38. Kd3 {[%emt 0:00:31]} Ra6 {[%emt 0:01:13]} 39. Kc3 {[%emt 0:01:14]} Ra4 {[%emt 0:01:21]} 40. Kb3 {[%emt 0:01:02]} g6 {[%emt 0:00:35]} 41. Rc6 {[%emt 0:00:41]} f5 {[%emt 0:00:43]} 42. exf5 {[%emt 0:00:31]} gxf5 {[%emt 0:00:03]} 43. Rb6 {[%emt 0:01:49]} Ra5 {[%emt 0:00:28]} 44. Rb7+ {[%emt 0:01:06]} Kc8 {[%emt 0:00:34]} 45. Rh7 {[%emt 0:00:36]} b4 {[%emt 0:00:39]} 46. Rxh5 {[%emt 0:00:45]} Rxd5 {[%emt 0:00:07]} 47. Rg5 {[%emt 0:01:25]} e4 {[%emt 0:00:34]} 48. fxe4 {[%emt 0:00:19]} Rd2 {[%emt 0:00:41]} 49. Rxf5 {[%emt 0:00:14]} Re2 {[%emt 0:00:12]} 50. Rf4 {[%emt 0:00:25]} Kd7 {[%emt 0:00:54]} 51. g4 {[%emt 0:01:16]} Ke6 {[%emt 0:00:11]} 52. Bd4 {[%emt 0:01:25]} Rd2 {[%emt 0:00:46]} 53. Kc4 {[%emt 0:00:14]} b3 {[%emt 0:00:24]} 54. Bc3 {[%emt 0:00:18]} d5+ {[%emt 0:00:45]} 55. exd5+ {[%emt 0:00:12]} Rxd5 {[%emt 0:00:09]} 56. Rf6+ 1-0

[Event "Torneio Nacional Honour 2017-18"]
[Site "Cascais"]
[Date "2018.08.11"]
[Round "1"]
[White "Guia, Artur Solovyov Eloy"]
[Black "Horta, Antonio Mauricio Ri"]
[Result "1/2-1/2"]
[ECO "B07"]
[WhiteElo "1818"]
[BlackElo "1950"]
[Annotator "NA"]
[PlyCount "78"]
[EventDate "2018.08.11"]
[EventType "tourn"]
[EventCountry "POR"]
[SourceTitle "playchess.com"]
[Source "ChessBase"]
[SourceQuality "1"]
[TimeControl "5400+30"]

1. e4 {[%emt 0:00:00]} d6 {[%emt 0:00:00]} 2. d4 {[%emt 0:00:00]} Nf6 {[%emt 0:00:00]} 3. Nc3 {[%emt 0:00:00]} g6 {[%emt 0:01:25]} 4. g3 {[%emt 0:00:10]} Bg7 {[%emt 0:00:09]} 5. Bg2 {[%emt 0:00:07]} O-O {[%emt 0:00:14]} 6. Nge2 {[%emt 0:00:12]} c6 {[%emt 0:01:33]} 7. h3 {[%emt 0:00:53]} Nbd7 {[%emt 0:00:22]} 8. a4 {[%emt 0:00:36]} e5 {[%emt 0:00:20]} 9. O-O {[%emt 0:01:22]} Qe7 {[%emt 0:00:15]} 10. Be3 {[%emt 0:02:47]} Re8 {[%emt 0:02:50]} 11. Re1 {[%emt 0:03:15]} Qf8 {[%emt 0:02:35]} 12. Qd2 {[%emt 0:04:28]} exd4 {[%emt 0:08:31]} 13. Bxd4 {[%emt 0:02:50]} Ne5 {[%emt 0:05:45]} 14. b3 {[%emt 0:02:39]} c5 {[%emt 0:09:38]} 15. Be3 {[%emt 0:04:54]} Bxh3 {[%emt 0:11:59]} 16. Rad1 {[%emt 0:12:30]} Bxg2 {[%emt 0:18:27]} 17. Kxg2 {[%emt 0:00:11]} Nc6 {[%emt 0:00:32]} 18. Qxd6 {[%emt 0:04:10]} Qxd6 {[%emt 0:03:15]} 19. Rxd6 {[%emt 0:00:23]} Nxe4 {[%emt 0:00:05]} 20. Nxe4 {[%emt 0:04:51]} Rxe4 {[%emt 0:00:51]} 21. Kf3 {[%emt 0:05:45]} Rae8 {[%emt 0:06:11]} 22. Red1 {[%emt 0:03:54]} R4e7 {[%emt 0:16:02]} 23. Nf4 {[%emt 0:02:52]} Nd4+ {[%emt 0:00:20]} 24. Bxd4 {[%emt 0:00:18]} cxd4 {[%emt 0:00:01]} 25. Rd2 {[%emt 0:02:45]} Rc7 {[%emt 0:01:43]} 26. Nd5 {[%emt 0:00:33]} Rc6 {[%emt 0:00:08]} 27. Rd7 {[%emt 0:00:42]} Rc5 {[%emt 0:00:32]} 28. b4 {[%emt 0:00:43]} Rc4 {[%emt 0:02:28]} 29. Rxb7 {[%emt 0:03:50]} Rd8 {[%emt 0:01:02]} 30. Nf4 {[%emt 0:02:40]} Bf8 {[%emt 0:00:25]} 31. Nd3 {[%emt 0:01:57]} a5 {[%emt 0:01:13]} 32. bxa5 {[%emt 0:00:34]} Rxa4 {[%emt 0:00:01]} 33. Rb5 {[%emt 0:00:29]} Ra8 {[%emt 0:01:30]} 34. Nc5 {[%emt 0:02:17]} R4xa5 {[%emt 0:00:10]} 35. Rxa5 {[%emt 0:00:20]} Rxa5 {[%emt 0:00:01]} 36. Nb3 {[%emt 0:00:07]} Rf5+ {[%emt 0:01:46]} 37. Ke4 {[%emt 0:00:57]} Bb4 {[%emt 0:03:52]} 38. Re2 {[%emt 0:01:13]} Bc3 {[%emt 0:01:34]} 39. Nxd4 {[%emt 0:00:29]} Rf6 {[%emt 0:00:24]} 1/2-1/2

[Event "Torneio Nacional Honour 2017-18"]
[Site "Cascais"]
[Date "2018.08.11"]
[Round "1"]
[White "De Moura, Fernando Alves"]
[Black "Santos, Jose Barria"]
[Result "0-1"]
[ECO "B50"]
[WhiteElo "1814"]
[BlackElo "2062"]
[Annotator "NA"]
[PlyCount "68"]
[EventDate "2018.08.11"]
[EventType "tourn"]
[EventCountry "POR"]
[SourceTitle "playchess.com"]
[Source "ChessBase"]
[SourceQuality "1"]
[TimeControl "5400+30"]

1. e4 {[%emt 0:00:00]} c5 {[%emt 0:00:00]} 2. Nf3 {[%emt 0:00:00]} d6 {[%emt 0:00:00]} 3. c3 {[%emt 0:01:34]} Nf6 {[%emt 0:00:23]} 4. Be2 {[%emt 0:01:44]} Nc6 {[%emt 0:02:19]} 5. d3 {[%emt 0:03:42]} e5 {[%emt 0:00:39]} 6. Nbd2 {[%emt 0:03:03]} Be7 {[%emt 0:10:46]} 7. Nf1 {[%emt 0:00:37]} d5 {[%emt 0:04:14]} 8. Qc2 {[%emt 0:03:26]} h6 {[%emt 0:01:13]} 9. Ng3 {[%emt 0:01:48]} Be6 {[%emt 0:01:22]} 10. h3 {[%emt 0:04:20]} Rc8 {[%emt 0:08:39]} 11. O-O {[%emt 0:03:02]} O-O {[%emt 0:00:24]} 12. Rd1 {[%emt 0:03:27]} Qc7 {[%emt 0:03:47]} 13. Bd2 {[%emt 0:07:03]} Rfd8 {[%emt 0:00:14]} 14. Nh2 {[%emt 0:02:19]} d4 {[%emt 0:21:15]} 15. Ng4 {[%emt 0:06:16]} Qd7 {[%emt 0:10:28]} 16. Nxf6+ {[%emt 0:08:20]} Bxf6 {[%emt 0:00:08]} 17. Qc1 {[%emt 0:02:40]} b5 {[%emt 0:04:13]} 18. Nh5 {[%emt 0:03:20]} Qe7 {[%emt 0:00:45]} 19. g4 {[%emt 0:12:43]} c4 {[%emt 0:06:16]} 20. Nxf6+ {[%emt 0:10:00]} Qxf6 {[%emt 0:00:06]} 21. g5 {[%emt 0:00:23]} hxg5 {[%emt 0:01:32]} 22. Bxg5 {[%emt 0:02:33]} Qg6 {[%emt 0:00:14]} 23. Kh2 {[%emt 0:00:06]} f6 {[%emt 0:00:29]} 24. f4 {[%emt 0:12:22]} cxd3 {[%emt 0:12:24]} 25. Bf3 {[%emt 0:05:34]} Bd7 {[%emt 0:00:57]} 26. Rg1 {[%emt 0:00:19]} fxg5 {[%emt 0:00:38]} 27. f5 {[%emt 0:00:29]} Qf6 {[%emt 0:01:16]} 28. Rxg5 {[%emt 0:00:32]} d2 {[%emt 0:03:27]} 29. Qg1 {[%emt 0:00:19]} Be8 {[%emt 0:01:06]} 30. Rd1 {[%emt 0:00:28]} dxc3 {[%emt 0:00:11]} 31. bxc3 {[%emt 0:00:01]} b4 {[%emt 0:00:42]} 32. cxb4 {[%emt 0:02:52]} Nd4 {[%emt 0:00:17]} 33. Bh1 {[%emt 0:00:31]} Ne2 {[%emt 0:00:37]} 34. Rxd2 {[%emt 0:00:36]} Nxg1 0-1

[Event "Torneio Nacional Honour 2017-18"]
[Site "Cascais"]
[Date "2018.08.11"]
[Round "1"]
[White "Sa, Claudio Simao Carva"]
[Black "Lavrador, Rodolfo M Mascarenh"]
[Result "1-0"]
[ECO "C01"]
[WhiteElo "1790"]
[BlackElo "1859"]
[Annotator "NA"]
[PlyCount "111"]
[EventDate "2018.08.11"]
[EventType "tourn"]
[EventCountry "POR"]
[SourceTitle "playchess.com"]
[Source "ChessBase"]
[SourceQuality "1"]
[TimeControl "5400+30"]

1. e4 {[%emt 0:00:12]} e6 {[%emt 0:00:00]} 2. d4 {[%emt 0:00:44]} d5 {[%emt 0:00:00]} 3. exd5 {[%emt 0:00:21]} exd5 {[%emt 0:00:00]} 4. Nc3 {[%emt 0:00:50]} c6 {[%emt 0:00:31]} 5. Bd3 {[%emt 0:00:38]} Bd6 {[%emt 0:00:09]} 6. Nge2 {[%emt 0:00:48]} Bg4 {[%emt 0:06:49]} 7. h3 {[%emt 0:05:24]} Qh4 {[%emt 0:04:23]} 8. Be3 {[%emt 0:03:25]} Ne7 {[%emt 0:06:02]} 9. Qd2 {[%emt 0:01:23]} Bxe2 {[%emt 0:04:13]} 10. Nxe2 {[%emt 0:00:55]} h6 {[%emt 0:02:43]} 11. O-O {[%emt 0:03:52]} Nd7 {[%emt 0:01:18]} 12. Bf4 {[%emt 0:09:58]} Bxf4 {[%emt 0:01:14]} 13. Qxf4 {[%emt 0:00:31]} Qxf4 {[%emt 0:01:22]} 14. Nxf4 {[%emt 0:00:12]} O-O-O {[%emt 0:02:01]} 15. Rfe1 {[%emt 0:00:46]} Rhe8 {[%emt 0:04:56]} 16. Nh5 {[%emt 0:02:06]} Ng6 {[%emt 0:10:47]} 17. Nxg7 {[%emt 0:02:38]} Rg8 {[%emt 0:03:30]} 18. Nf5 {[%emt 0:00:54]} Nf6 {[%emt 0:07:05]} 19. Nxh6 {[%emt 0:02:02]} Rgf8 {[%emt 0:00:45]} 20. Nxf7 {[%emt 0:00:40]} Rxf7 {[%emt 0:00:37]} 21. Bxg6 {[%emt 0:00:09]} Rg7 {[%emt 0:00:16]} 22. Bf5+ {[%emt 0:00:11]} Kc7 {[%emt 0:00:17]} 23. Re6 {[%emt 0:01:09]} Nh5 {[%emt 0:00:50]} 24. Rae1 {[%emt 0:01:05]} Kb6 {[%emt 0:00:50]} 25. Rh6 {[%emt 0:08:30]} Nf4 {[%emt 0:02:11]} 26. g3 {[%emt 0:00:51]} Rf8 {[%emt 0:01:01]} 27. Bg4 {[%emt 0:01:15]} Ng6 {[%emt 0:00:47]} 28. Re6 {[%emt 0:01:10]} Ne7 {[%emt 0:00:22]} 29. Rhf6 {[%emt 0:00:54]} Rh8 {[%emt 0:02:00]} 30. Kg2 {[%emt 0:03:29]} Kb5 {[%emt 0:00:25]} 31. Be2+ {[%emt 0:00:44]} Kb6 {[%emt 0:01:12]} 32. h4 {[%emt 0:00:15]} Ng8 {[%emt 0:01:57]} 33. Rg6 {[%emt 0:00:39]} Rxg6 {[%emt 0:01:02]} 34. Rxg6 {[%emt 0:00:09]} Ne7 {[%emt 0:00:12]} 35. Rf6 {[%emt 0:00:34]} a5 {[%emt 0:00:51]} 36. h5 {[%emt 0:00:25]} Kc7 {[%emt 0:01:23]} 37. h6 {[%emt 0:00:37]} Kd8 {[%emt 0:02:46]} 38. Rd6+ {[%emt 0:04:10]} Kc7 {[%emt 0:01:20]} 39. Rf6 {[%emt 0:00:19]} Kd8 {[%emt 0:00:16]} 40. Bh5 {[%emt 0:00:59]} Kd7 {[%emt 0:03:11]} 41. g4 {[%emt 0:00:26]} Ng8 {[%emt 0:03:16]} 42. Rf7+ {[%emt 0:00:59]} Ke6 {[%emt 0:00:25]} 43. g5 {[%emt 0:01:06]} Ne7 {[%emt 0:01:48]} 44. Rf6+ {[%emt 0:02:00]} Kd7 {[%emt 0:00:18]} 45. Bg4+ {[%emt 0:01:31]} Ke8 {[%emt 0:00:23]} 46. Kh3 {[%emt 0:01:33]} Ng8 {[%emt 0:01:14]} 47. Bh5+ {[%emt 0:00:29]} Ke7 {[%emt 0:00:19]} 48. Rf7+ {[%emt 0:00:09]} Ke6 {[%emt 0:00:39]} 49. h7 {[%emt 0:01:51]} Ne7 {[%emt 0:00:41]} 50. g6 {[%emt 0:00:18]} b5 {[%emt 0:01:05]} 51. g7 {[%emt 0:03:15]} Rxh7 {[%emt 0:00:18]} 52. Rxe7+ {[%emt 0:00:12]} Kxe7 {[%emt 0:00:22]} 53. g8=Q {[%emt 0:00:08]} Rxh5+ {[%emt 0:00:22]} 54. Kg4 {[%emt 0:00:19]} Rh1 {[%emt 0:00:26]} 55. Qg7+ {[%emt 0:00:54]} Kd8 {[%emt 0:00:44]} 56. Qb7 {[%emt 0:00:30]} 1-0

[Event "Torneio Nacional Honour 2017-18"]
[Site "Cascais"]
[Date "2018.08.12"]
[Round "2"]
[White "Santos, Jose Barria"]
[Black "Godinho Marques, Pedro"]
[Result "1-0"]
[ECO "C68"]
[WhiteElo "2062"]
[BlackElo "1862"]
[Annotator "NA"]
[PlyCount "41"]
[EventDate "2018.08.11"]
[EventType "tourn"]
[EventCountry "POR"]
[SourceTitle "playchess.com"]
[Source "ChessBase"]
[SourceQuality "1"]
[TimeControl "5400+30"]

1. e4 {[%emt 0:00:00]} e5 {[%emt 0:01:14]} 2. Nf3 {[%emt 0:00:00]} Nc6 {[%emt 0:00:34]} 3. Bb5 {[%emt 0:00:41]} a6 {[%emt 0:01:29]} 4. Bxc6 {[%emt 0:00:13]} dxc6 {[%emt 0:04:31]} 5. O-O {[%emt 0:00:06]} Bg4 {[%emt 0:05:11]} 6. d3 {[%emt 0:00:12]} Qf6 {[%emt 0:02:15]} 7. Nbd2 {[%emt 0:00:23]} Ne7 {[%emt 0:02:59]} 8. h3 {[%emt 0:04:22]} h5 {[%emt 0:02:55]} 9. Re1 {[%emt 0:20:10]} Ng6 {[%emt 0:12:27]} 10. d4 {[%emt 0:13:42]} Bxf3 11. Nxf3 {[%emt 0:00:59]} Be7 {[%emt 0:28:25]} 12. c3 {[%emt 0:03:51]} O-O-O {[%emt 0:01:05]} 13. Bg5 {[%emt 0:11:18]} Qe6 {[%emt 0:01:02]} 14. Bxe7 {[%emt 0:03:03]} Qxe7 {[%emt 0:02:08]} 15. Qc1 {[%emt 0:07:37]} f6 {[%emt 0:01:47]} 16. Qe3 {[%emt 0:04:56]} Kb8 {[%emt 0:02:36]} 17. a4 {[%emt 0:05:06]} Qe6 {[%emt 0:05:58]} 18. b4 {[%emt 0:01:18]} Ne7 {[%emt 0:03:24]} 19. b5 {[%emt 0:05:58]} a5 {[%emt 0:04:14]} 20. bxc6 {[%emt 0:01:48]} bxc6 {[%emt 0:05:27]} 21. dxe5 {[%emt 0:01:17]} 1-0

[Event "Torneio Nacional Honour 2017-18"]
[Site "Cascais"]
[Date "2018.08.12"]
[Round "2"]
[White "Horta, Antonio Mauricio Ri"]
[Black "Santos, Ruben Jose Melo"]
[Result "1-0"]
[ECO "A46"]
[WhiteElo "1950"]
[BlackElo "1718"]
[Annotator "NA"]
[PlyCount "105"]
[EventDate "2018.08.11"]
[EventType "tourn"]
[EventCountry "POR"]
[SourceTitle "playchess.com"]
[Source "ChessBase"]
[SourceQuality "1"]
[TimeControl "5400+30"]

1. d4 {[%emt 0:00:00]} Nf6 {[%emt 0:00:00]} 2. Nf3 {[%emt 0:00:00]} e6 {[%emt 0:00:00]} 3. g3 {[%emt 0:00:00]} d5 {[%emt 0:00:13]} 4. Bg2 {[%emt 0:00:00]} c5 {[%emt 0:00:07]} 5. O-O {[%emt 0:00:22]} cxd4 {[%emt 0:00:14]} 6. Nxd4 {[%emt 0:00:39]} Be7 {[%emt 0:00:40]} 7. c4 {[%emt 0:00:57]} Nc6 {[%emt 0:02:13]} 8. Nc3 {[%emt 0:01:36]} e5 {[%emt 0:03:48]} 9. Nxc6 {[%emt 0:01:30]} bxc6 {[%emt 0:00:33]} 10. cxd5 {[%emt 0:00:36]} cxd5 {[%emt 0:00:03]} 11. Nxd5 {[%emt 0:00:11]} Nxd5 {[%emt 0:01:43]} 12. Bxd5 {[%emt 0:00:16]} Rb8 {[%emt 0:00:14]} 13. Bc6+ {[%emt 0:09:50]} Bd7 {[%emt 0:00:02]} 14. Bxd7+ {[%emt 0:00:06]} Qxd7 {[%emt 0:00:10]} 15. Qxd7+ {[%emt 0:00:06]} Kxd7 {[%emt 0:00:03]} 16. Rb1 {[%emt 0:00:28]} Rhc8 {[%emt 0:00:40]} 17. Be3 {[%emt 0:00:09]} Rc2 {[%emt 0:00:49]} 18. Rfd1+ {[%emt 0:00:12]} Ke6 {[%emt 0:02:00]} 19. Rd2 {[%emt 0:00:27]} Rbc8 {[%emt 0:00:02]} 20. Rbd1 {[%emt 0:00:34]} Rxd2 {[%emt 0:00:53]} 21. Rxd2 {[%emt 0:00:08]} Bb4 {[%emt 0:00:02]} 22. Rd3 {[%emt 0:01:04]} Rc2 {[%emt 0:08:31]} 23. Rb3 {[%emt 0:00:53]} a5 {[%emt 0:00:02]} 24. a3 {[%emt 0:00:04]} Bc5 {[%emt 0:09:23]} 25. Bxc5 {[%emt 0:04:25]} Rxc5 {[%emt 0:00:12]} 26. e4 {[%emt 0:10:13]} Kd6 {[%emt 0:11:11]} 27. Rb7 {[%emt 0:02:15]} Ke6 {[%emt 0:11:57]} 28. Kg2 {[%emt 0:00:46]} h5 {[%emt 0:02:56]} 29. h4 {[%emt 0:05:12]} g6 {[%emt 0:00:04]} 30. Rb6+ {[%emt 0:03:10]} Kd7 {[%emt 0:02:17]} 31. b3 {[%emt 0:05:35]} Rc3 {[%emt 0:05:01]} 32. a4 {[%emt 0:08:24]} Rc5 {[%emt 0:01:57]} 33. Kf1 {[%emt 0:04:35]} Ke7 {[%emt 0:02:42]} 34. Ke2 {[%emt 0:01:38]} f6 {[%emt 0:02:10]} 35. Kd3 {[%emt 0:01:05]} Kf7 {[%emt 0:01:12]} 36. Rb5 {[%emt 0:02:00]} Rc1 {[%emt 0:04:17]} 37. Rxa5 {[%emt 0:00:09]} Ke6 {[%emt 0:01:10]} 38. Ra6+ {[%emt 0:00:14]} Kf7 {[%emt 0:00:02]} 39. Rb6 {[%emt 0:01:42]} f5 {[%emt 0:00:12]} 40. exf5 {[%emt 0:00:23]} gxf5 {[%emt 0:00:02]} 41. a5 {[%emt 0:00:16]} e4+ {[%emt 0:01:32]} 42. Kd4 {[%emt 0:00:17]} Rc2 {[%emt 0:00:42]} 43. Ke3 {[%emt 0:05:46]} Ke7 {[%emt 0:00:32]} 44. a6 {[%emt 0:02:11]} Kd7 {[%emt 0:00:05]} 45. a7 {[%emt 0:00:07]} Ra2 {[%emt 0:00:06]} 46. Rb7+ {[%emt 0:00:04]} Kc6 {[%emt 0:00:17]} 47. Rf7 {[%emt 0:00:10]} Ra5 {[%emt 0:02:26]} 48. Rxf5 {[%emt 0:00:36]} Rxa7 {[%emt 0:00:02]} 49. Kxe4 {[%emt 0:00:12]} Rb7 {[%emt 0:00:27]} 50. Rxh5 {[%emt 0:01:02]} Rxb3 {[%emt 0:00:02]} 51. Rf5 {[%emt 0:06:16]} Kd6 {[%emt 0:00:08]} 52. Kf4 {[%emt 0:00:26]} Ke6 {[%emt 0:00:15]} 53. Kg5 {[%emt 0:00:28]} 1-0